{"text_format":"1","workbook":"xlsx","n_sheets":1,"sheets":["Blad1"],"not_rendered":{"charts":0,"images":0,"macros":1,"external_links":0,"defined_names":30,"comments":0,"pivot_tables":0},"unopened":[],"bounds":{"document_bytes":16777216,"sheet_cells":100000,"rows_first":2000,"rows_last":500,"rows_between":2000,"halvings":0,"cell_chars":16384,"cell_head_chars":4096},"cells_cut":0,"cells_raw":0,"read":"whole","date_system":"1900"}

{"sheet":"Blad1","index":0,"n_rows":101,"n_cols":6,"rows_kept":101,"cut":false,"hidden":false,"merged":[]}
[null,"KLANT"]
[]
[null,"BREEDTE VOORGEVEL","BREEDTE LINKERGEVEL","BREEDTE RECHTERGEVEL","BREEDTE ACHTERGEVEL"]
[]
["BREEDTE GEVEL",9]
["BREEDTE GEVEL IS MAX MAAT","ja"]
["LENGTE STELLING",{"$f":"--IF(B6=\"Ja\",F99,(B66*3))","v":7}]
["AFSTAND STELLING TOT GEVEL "]
["HOOGTE WERKPLATFORM",6]
["TRAPLUIK ELKE VERDIEPING"]
["UITBOUW"]
[]
[]
[]
[]
["VOETEN"]
[]
[]
[]
[]
[]
[]
[]
[]
[]
[]
[]
[]
[]
[]
[]
[]
[]
[]
[]
[]
[]
[]
[]
[]
[]
[]
[]
[]
[]
[]
[]
[]
[]
[]
["BEREKENINGEN"]
[]
[]
[]
[null,"BREEDTE VOORGEVEL","BREEDTE LINKERGEVEL","BREEDTE RECHTERGEVEL","BREEDTE ACHTERGEVEL"]
[]
["BREEDTE GEVEL",{"$f":"B5","v":9},{"$f":"C5","v":0},{"$f":"D5","v":0},{"$f":"E5","v":0}]
["GEVELBREEDTE IS MAX STELLINGLENGTE",{"$f":"B6","v":"ja"}]
["LENGTE STELLING",{"$f":"--IF(B58=\"Ja\",F100,(B66*3))","v":9}]
["AFSTAND STELLING TOT GEVEL",{"$f":"B8","v":0}]
["HOOGTE WERKPLATFORM",{"$f":"B9","v":6}]
["TRAPLUIK ELKE VERDIEPING",{"$f":"B10","v":0}]
["UITBOUW",{"$f":"B11","v":0}]
[]
[]
["aantal verdelingen horizontaal",{"$f":"ROUNDUP(B57/3,0)","v":3}]
[]
["aantal verdiepingen",{"$f":"B61/3","v":2}]
["hoogte staanders",{"$f":"B61+1","v":7}]
["berekening hoogte staander 3m",{"$f":"(_xlfn.FLOOR.MATH(B69,3)/3)","v":2}]
["berekening hoogte staander 2m",{"$f":"--(IF(B69-(B70*3)>1,1))","v":0}]
["berekening hoogte staander 1m",{"$f":"--(IF(B69-(B70*3)<=1,1))","v":1}]
["aantal voeten",{"$f":"(B66+1)*2","v":8}]
["aantal staander 3m",{"$f":"B70*B73","v":16}]
["aantal staander 2m",{"$f":"B71*B73","v":0}]
["aantal staander 1m",{"$f":"B72*B73","v":8}]
["aantal ligger 3m opbouw stelling",{"$f":"--IF(B58=\"Ja\",((G87*2*B68)+(B68)+2),((B66*2*B68)+(B68)+2))","v":4}]
["aantal ligger 2,5m opbouw stelling"]
["aantal ligger 0,75m opbouw stelling"]
["leuning 3m"]
["leuning 2,5m"]
["leuning 0,75"]
["platform 3m voor opbouw stelling"]
["platform 2,5m voor opbouw stelling"]
["platform 0,75m voor opbouw stelling"]
[]
[]
[]
[]
[]
[]
[]
[]
["uitbouw",{"$f":"--(IF(B11=\"Ja\",(B73/2)))","v":0}]
[]
[null,null,null,null,0.75,2]
[null,null,null,null,2.5,1]
[null,null,null,null,3,1]
[null,null,null,null,"totaal berekening",{"$f":"SUMPRODUCT(E96:E98,F96:F98)","v":7}]
[null,null,null,null,"max breedte voorgevel",{"$f":"B5","v":9}]
[null,null,null,null,null,{"$f":"(F100-F99)^2","v":4}]